[Event "Titled Tuesday Blitz March 07 Late 2023"]
[White "Graif, William"]
[Black "Yano, William Jorge Froes"]
[WhiteFideId "2609835"]
[BlackFideId "2112949"]
[WhiteElo "2205"]
[BlackElo "2122"]
[Result "1-0"]
[Round "10"]
[TimeControl "180+2"]
[Date "2023.03.07"]
[WhiteClock "0:00:08"]
[BlackClock "0:00:11"]

1. e4 {[%clk 0:02:51]}  e6 {[%clk 0:02:59]} 2. d4 {[%clk 0:02:50]}  d5 {[%clk 0:03:00]} 3. Be3 {[%clk 0:02:50]}  Nf6 {[%clk 0:02:57]} 4. e5 {[%clk 0:02:48]}  Nfd7 {[%clk 0:02:58]} 5. c3 {[%clk 0:02:47]}  c5 {[%clk 0:02:58]} 6. Nd2 {[%clk 0:02:43]}  Nc6 {[%clk 0:02:59]} 7. a3 {[%clk 0:02:19]}  f6 {[%clk 0:02:54]} 8. Bd3 {[%clk 0:01:46]}  f5 {[%clk 0:02:31]} 9. Ngf3 {[%clk 0:01:40]}  Be7 {[%clk 0:02:30]} 10. h4 {[%clk 0:01:36]}  O-O {[%clk 0:02:28]} 11. Ng5 {[%clk 0:01:10]}  Bxg5 {[%clk 0:02:10]} 12. hxg5 {[%clk 0:01:07]}  g6 {[%clk 0:01:57]} 13. f4 {[%clk 0:00:58]}  cxd4 {[%clk 0:01:53]} 14. cxd4 {[%clk 0:00:58]}  Qb6 {[%clk 0:01:36]} 15. b4 {[%clk 0:00:40]}  Ncxe5 {[%clk 0:01:18]} 16. fxe5 {[%clk 0:00:38]}  Nxe5 {[%clk 0:01:18]} 17. Be2 {[%clk 0:00:30]}  Nf7 {[%clk 0:01:10]} 18. Nf3 {[%clk 0:00:29]}  Bd7 {[%clk 0:01:07]} 19. Rc1 {[%clk 0:00:28]}  Rac8 {[%clk 0:01:03]} 20. Rxc8 {[%clk 0:00:25]}  Rxc8 {[%clk 0:01:03]} 21. Qd2 {[%clk 0:00:23]}  Ba4 {[%clk 0:01:00]} 22. Bd3 {[%clk 0:00:20]}  Nd6 {[%clk 0:00:57]} 23. Qf2 {[%clk 0:00:16]}  Ne4 {[%clk 0:00:47]} 24. Bxe4 {[%clk 0:00:16]}  dxe4 {[%clk 0:00:47]} 25. Ne5 {[%clk 0:00:16]}  Rc3 {[%clk 0:00:32]} 26. Bd2 {[%clk 0:00:12]}  Rc2 {[%clk 0:00:27]} 27. Qh4 {[%clk 0:00:11]}  Qc7 {[%clk 0:00:28]} 28. Nxg6 {[%clk 0:00:11]}  Rxd2 {[%clk 0:00:17]} 29. Kxd2 {[%clk 0:00:08]}  Qc2+ {[%clk 0:00:17]} 30. Ke1 {[%clk 0:00:08]}  Qd1+ {[%clk 0:00:16]} 31. Kf2 {[%clk 0:00:08]}  Qd2+ {[%clk 0:00:16]} 32. Kg1 {[%clk 0:00:07]}  Qxd4+ {[%clk 0:00:16]} 33. Kh2 {[%clk 0:00:08]}  hxg6 {[%clk 0:00:16]} 34. Qh6 {[%clk 0:00:06]}  Qg7 {[%clk 0:00:12]} 35. Qxg7+ {[%clk 0:00:05]}  Kxg7 {[%clk 0:00:13]} 36. Kg3 {[%clk 0:00:06]}  Bc6 {[%clk 0:00:13]} 37. Rd1 {[%clk 0:00:06]}  e5 {[%clk 0:00:10]} 38. Rd8 {[%clk 0:00:05]}  f4+ {[%clk 0:00:10]} 39. Kf2 {[%clk 0:00:05]}  e3+ {[%clk 0:00:10]} 40. Kf1 {[%clk 0:00:06]}  Kf7 {[%clk 0:00:08]} 41. b5 {[%clk 0:00:05]}  Bxb5+ {[%clk 0:00:08]} 42. Ke1 {[%clk 0:00:05]}  Bc6 {[%clk 0:00:08]} 43. Rd6 {[%clk 0:00:05]}  e4 {[%clk 0:00:07]} 44. Rf6+ {[%clk 0:00:05]}  Kg7 {[%clk 0:00:07]} 45. Rxf4 {[%clk 0:00:06]}  a5 {[%clk 0:00:07]} 46. Ke2 {[%clk 0:00:07]}  a4 {[%clk 0:00:06]} 47. Kxe3 {[%clk 0:00:07]}  Kg8 {[%clk 0:00:05]} 48. Rf6 {[%clk 0:00:08]}  Kg7 {[%clk 0:00:05]} 49. Kd4 {[%clk 0:00:08]}  Kg8 {[%clk 0:00:05]} 50. Ke5 {[%clk 0:00:09]}  Kg7 {[%clk 0:00:05]} 51. Rd6 {[%clk 0:00:09]}  Kf7 {[%clk 0:00:05]} 52. Rd1 {[%clk 0:00:08]}  Ke7 {[%clk 0:00:05]} 53. Re1 {[%clk 0:00:08]}  Kd7 {[%clk 0:00:05]} 54. Rh1 {[%clk 0:00:07]}  Kc7 {[%clk 0:00:05]} 55. Rh7+ {[%clk 0:00:08]}  Kb6 {[%clk 0:00:05]} 56. Rg7 {[%clk 0:00:08]}  e3 {[%clk 0:00:06]} 57. Re7 {[%clk 0:00:08]}  Bxg2 {[%clk 0:00:06]} 58. Kf6 {[%clk 0:00:07]}  Bc6 {[%clk 0:00:06]} 59. Kxg6 {[%clk 0:00:07]}  Kc5 {[%clk 0:00:06]} 60. Rxe3 {[%clk 0:00:07]}  b5 {[%clk 0:00:07]} 61. Kf6 {[%clk 0:00:08]}  b4 {[%clk 0:00:07]} 62. axb4+ {[%clk 0:00:07]}  Kxb4 {[%clk 0:00:08]} 63. g6 {[%clk 0:00:08]}  Bb5 {[%clk 0:00:09]} 64. g7 {[%clk 0:00:08]}  a3 {[%clk 0:00:09]} 65. g8=Q {[%clk 0:00:07]}  Bc4 {[%clk 0:00:10]} 66. Re4 {[%clk 0:00:06]}  a2 {[%clk 0:00:10]} 67. Qxc4+ {[%clk 0:00:07]}  Ka3 {[%clk 0:00:10]} 68. Re3+ {[%clk 0:00:07]}  Kb2 {[%clk 0:00:11]} 69. Qc3+ {[%clk 0:00:08]}  Kb1 {[%clk 0:00:11]} 70. Re1# {[%clk 0:00:08]} 1-0


[Site "https://www.chess.com"]

[Event "Titled Tuesday Blitz March 07 Late 2023"]
[White "Harriott, Tyrell"]
[Black "ArchibaldCerveza29"]
[WhiteFideId "2086484"]
[WhiteElo "2107"]
[BlackElo "2484"]
[Result "1/2-1/2"]
[Round "10"]
[TimeControl "180+2"]
[Date "2023.03.07"]
[WhiteClock "0:00:04"]
[BlackClock "0:00:06"]

1. d4 {[%clk 0:03:00]}  d5 {[%clk 0:02:58]} 2. e3 {[%clk 0:03:01]}  Nf6 {[%clk 0:02:55]} 3. Bd3 {[%clk 0:03:00]}  c5 {[%clk 0:02:52]} 4. c3 {[%clk 0:02:59]}  Nc6 {[%clk 0:02:52]} 5. f4 {[%clk 0:02:59]}  Bg4 {[%clk 0:02:50]} 6. Ne2 {[%clk 0:03:00]}  e6 {[%clk 0:02:46]} 7. Nd2 {[%clk 0:02:59]}  Be7 {[%clk 0:02:40]} 8. O-O {[%clk 0:02:58]}  O-O {[%clk 0:02:36]} 9. Nf3 {[%clk 0:02:55]}  Ne4 {[%clk 0:02:34]} 10. Bxe4 {[%clk 0:02:49]}  dxe4 {[%clk 0:02:34]} 11. Ne5 {[%clk 0:02:50]}  Bxe2 {[%clk 0:02:14]} 12. Qxe2 {[%clk 0:02:49]}  Rc8 {[%clk 0:02:13]} 13. Qc2 {[%clk 0:02:35]}  cxd4 {[%clk 0:02:10]} 14. Nxc6 {[%clk 0:02:29]}  Rxc6 {[%clk 0:02:07]} 15. Qxe4 {[%clk 0:02:12]}  dxc3 {[%clk 0:02:04]} 16. bxc3 {[%clk 0:02:13]}  Rxc3 {[%clk 0:02:02]} 17. Qxb7 {[%clk 0:02:09]}  Bf6 {[%clk 0:02:01]} 18. Bb2 {[%clk 0:02:03]}  Rc7 {[%clk 0:01:57]} 19. Bxf6 {[%clk 0:02:01]}  Rxb7 {[%clk 0:01:53]} 20. Bxd8 {[%clk 0:01:59]}  Rxd8 {[%clk 0:01:54]} 21. Rad1 {[%clk 0:01:51]}  Rxd1 {[%clk 0:01:52]} 22. Rxd1 {[%clk 0:01:50]}  Kf8 {[%clk 0:01:52]} 23. Rd2 {[%clk 0:01:49]}  Ke7 {[%clk 0:01:52]} 24. Kf2 {[%clk 0:01:49]}  e5 {[%clk 0:01:47]} 25. Kf3 {[%clk 0:01:47]}  Rb4 {[%clk 0:01:42]} 26. Rc2 {[%clk 0:01:44]}  e4+ {[%clk 0:01:40]} 27. Kg4 {[%clk 0:01:40]}  Ra4 {[%clk 0:01:24]} 28. f5 {[%clk 0:01:37]}  Kf6 {[%clk 0:01:18]} 29. Kf4 {[%clk 0:01:37]}  g5+ {[%clk 0:01:17]} 30. fxg6 {[%clk 0:01:37]}  hxg6 {[%clk 0:01:17]} 31. h4 {[%clk 0:01:37]}  Ke6 {[%clk 0:01:04]} 32. g4 {[%clk 0:01:35]}  f6 {[%clk 0:00:56]} 33. h5 {[%clk 0:01:25]}  gxh5 {[%clk 0:00:57]} 34. gxh5 {[%clk 0:01:25]}  Ra5 {[%clk 0:00:57]} 35. Rh2 {[%clk 0:01:23]}  Kf7 {[%clk 0:00:46]} 36. h6 {[%clk 0:01:20]}  Kg8 {[%clk 0:00:44]} 37. h7+ {[%clk 0:01:18]}  Kh8 {[%clk 0:00:45]} 38. Kxe4 {[%clk 0:01:18]}  Re5+ {[%clk 0:00:44]} 39. Kd4 {[%clk 0:01:18]}  Ra5 {[%clk 0:00:41]} 40. Kc4 {[%clk 0:00:59]}  Re5 {[%clk 0:00:39]} 41. Kd4 {[%clk 0:00:57]}  Ra5 {[%clk 0:00:38]} 42. Ke4 {[%clk 0:00:56]}  Re5+ {[%clk 0:00:37]} 43. Kf4 {[%clk 0:00:56]}  Ra5 {[%clk 0:00:38]} 44. e4 {[%clk 0:00:54]}  Re5 {[%clk 0:00:37]} 45. Rh6 {[%clk 0:00:50]}  Ra5 {[%clk 0:00:35]} 46. Rh2 {[%clk 0:00:44]}  Re5 {[%clk 0:00:34]} 47. Rh3 {[%clk 0:00:40]}  Ra5 {[%clk 0:00:34]} 48. a3 {[%clk 0:00:40]}  Re5 {[%clk 0:00:31]} 49. Rb3 {[%clk 0:00:33]}  Ra5 {[%clk 0:00:26]} 50. Rh3 {[%clk 0:00:26]}  Re5 {[%clk 0:00:25]} 51. a4 {[%clk 0:00:24]}  Ra5 {[%clk 0:00:24]} 52. Rh4 {[%clk 0:00:19]}  Rxa4 {[%clk 0:00:22]} 53. Kf5 {[%clk 0:00:19]}  Ra1 {[%clk 0:00:18]} 54. Kxf6 {[%clk 0:00:18]}  a5 {[%clk 0:00:17]} 55. e5 {[%clk 0:00:18]}  a4 {[%clk 0:00:16]} 56. e6 {[%clk 0:00:16]}  Rf1+ {[%clk 0:00:15]} 57. Ke7 {[%clk 0:00:15]}  a3 {[%clk 0:00:14]} 58. Ra4 {[%clk 0:00:15]}  Rf3 {[%clk 0:00:12]} 59. Ke8 {[%clk 0:00:13]}  Kxh7 {[%clk 0:00:11]} 60. e7 {[%clk 0:00:13]}  Kg7 {[%clk 0:00:10]} 61. Kd8 {[%clk 0:00:04]}  Rd3+ {[%clk 0:00:09]} 62. Ke8 {[%clk 0:00:04]}  Re3 {[%clk 0:00:06]} 63. Rg4+ {[%clk 0:00:04]}  Kh7 {[%clk 0:00:05]} 64. Rg2 {[%clk 0:00:02]}  Kh6 {[%clk 0:00:02]} 65. Kf7 {[%clk 0:00:02]}  Rf3+ {[%clk 0:00:03]} 66. Ke6 {[%clk 0:00:03]}  Re3+ {[%clk 0:00:03]} 67. Kd6 {[%clk 0:00:03]}  Rd3+ {[%clk 0:00:04]} 68. Ke6 {[%clk 0:00:03]}  Re3+ {[%clk 0:00:04]} 69. Kf7 {[%clk 0:00:04]}  Rf3+ {[%clk 0:00:05]} 70. Ke8 {[%clk 0:00:05]}  Re3 {[%clk 0:00:05]} 71. Rg4 {[%clk 0:00:05]}  Kh5 {[%clk 0:00:04]} 72. Ra4 {[%clk 0:00:05]}  Kg6 {[%clk 0:00:04]} 73. Rg4+ {[%clk 0:00:05]}  Kh5 {[%clk 0:00:05]} 74. Rf4 {[%clk 0:00:04]}  Kg5 {[%clk 0:00:05]} 75. Rf2 {[%clk 0:00:04]}  Kg6 {[%clk 0:00:05]} 76. Kd7 {[%clk 0:00:04]}  Rd3+ {[%clk 0:00:05]} 77. Ke6 {[%clk 0:00:04]}  Re3+ {[%clk 0:00:06]} 78. Kd6 {[%clk 0:00:05]}  Rd3+ {[%clk 0:00:06]} 79. Kc7 {[%clk 0:00:04]}  Rc3+ {[%clk 0:00:06]} 80. Kd8 {[%clk 0:00:04]}  Rd3+ {[%clk 0:00:07]} 81. Ke8 {[%clk 0:00:05]}  Re3 {[%clk 0:00:07]} 82. Rf4 {[%clk 0:00:04]}  Kg5 {[%clk 0:00:07]} 83. Ra4 {[%clk 0:00:04]}  Kg6 {[%clk 0:00:07]} 84. Ra6+ {[%clk 0:00:04]}  Kg7 {[%clk 0:00:07]} 85. Ra4 {[%clk 0:00:04]}  Kg6 {[%clk 0:00:06]} 1/2-1/2


[Site "https://www.chess.com"]

[Event "Titled Tuesday Blitz March 07 Late 2023"]
[White "mohsengabr2002"]
[Black "Leiva, Gianmarco"]
[BlackFideId "3804399"]
[WhiteElo "2338"]
[BlackElo "2345"]
[Result "0-1"]
[Round "10"]
[TimeControl "180+2"]
[Date "2023.03.07"]
[WhiteClock "0:01:13"]
[BlackClock "0:00:50"]

1. b3 {[%clk 0:02:51]}  d5 {[%clk 0:02:59]} 2. e3 {[%clk 0:02:51]}  Nf6 {[%clk 0:02:58]} 3. Bb2 {[%clk 0:02:51]}  Bf5 {[%clk 0:02:58]} 4. Nf3 {[%clk 0:02:49]}  e6 {[%clk 0:02:27]} 5. Ne5 {[%clk 0:02:48]}  h6 {[%clk 0:02:25]} 6. g4 {[%clk 0:02:45]}  Be4 {[%clk 0:02:25]} 7. f3 {[%clk 0:02:44]}  Nfd7 {[%clk 0:01:44]} 8. fxe4 {[%clk 0:02:14]}  Qh4+ {[%clk 0:01:43]} 9. Ke2 {[%clk 0:02:14]}  Nxe5 {[%clk 0:01:44]} 10. Bxe5 {[%clk 0:02:14]}  Qxg4+ {[%clk 0:01:44]} 11. Ke1 {[%clk 0:02:11]}  Qxe4 {[%clk 0:01:44]} 12. Bxc7 {[%clk 0:02:01]}  Qxh1 {[%clk 0:01:40]} 13. Qe2 {[%clk 0:01:56]}  Kd7 {[%clk 0:01:32]} 14. Bg3 {[%clk 0:01:43]}  a6 {[%clk 0:01:16]} 15. Nc3 {[%clk 0:01:40]}  Ba3 {[%clk 0:01:11]} 16. Qg4 {[%clk 0:01:33]}  Nc6 {[%clk 0:01:06]} 17. Ke2 {[%clk 0:01:23]}  Bb2 {[%clk 0:01:05]} 18. Rd1 {[%clk 0:01:16]}  Bxc3 {[%clk 0:00:54]} 19. dxc3 {[%clk 0:01:16]}  Ke7 {[%clk 0:00:50]} 20. Bg2 {[%clk 0:01:13]}  Qxg2+ {[%clk 0:00:50]} 0-1


[Site "https://www.chess.com"]

[Event "Titled Tuesday Blitz March 07 Late 2023"]
[White "Ismagilov, Damir"]
[Black "Pino Perez, Lazaro"]
[WhiteFideId "34199982"]
[BlackFideId "3517055"]
[WhiteElo "2078"]
[BlackElo "2170"]
[Result "1/2-1/2"]
[Round "10"]
[TimeControl "180+2"]
[Date "2023.03.07"]
[WhiteClock "0:00:24"]
[BlackClock "0:00:40"]

1. d4 {[%clk 0:03:00]}  d5 {[%clk 0:02:58]} 2. Bf4 {[%clk 0:03:00]}  Nf6 {[%clk 0:02:58]} 3. e3 {[%clk 0:03:01]}  e6 {[%clk 0:02:58]} 4. Nd2 {[%clk 0:03:01]}  Bd6 {[%clk 0:02:59]} 5. Bg3 {[%clk 0:03:01]}  O-O {[%clk 0:02:59]} 6. Bd3 {[%clk 0:03:01]}  c5 {[%clk 0:02:59]} 7. c3 {[%clk 0:03:02]}  Qc7 {[%clk 0:02:59]} 8. f4 {[%clk 0:03:00]}  b6 {[%clk 0:02:41]} 9. Qe2 {[%clk 0:02:58]}  a5 {[%clk 0:02:40]} 10. Ngf3 {[%clk 0:02:57]}  Ba6 {[%clk 0:02:30]} 11. O-O {[%clk 0:02:57]}  Ne4 {[%clk 0:02:24]} 12. Bxa6 {[%clk 0:02:48]}  Nxg3 {[%clk 0:02:07]} 13. hxg3 {[%clk 0:02:49]}  Nxa6 {[%clk 0:02:07]} 14. e4 {[%clk 0:02:33]}  dxe4 {[%clk 0:01:51]} 15. Nxe4 {[%clk 0:02:32]}  Be7 {[%clk 0:01:49]} 16. dxc5 {[%clk 0:02:21]}  Nxc5 {[%clk 0:01:48]} 17. Rad1 {[%clk 0:02:16]}  Rad8 {[%clk 0:01:47]} 18. Nxc5 {[%clk 0:02:04]}  Qxc5+ {[%clk 0:01:40]} 19. Qf2 {[%clk 0:02:04]}  Qc4 {[%clk 0:01:37]} 20. a3 {[%clk 0:01:57]}  Bc5 {[%clk 0:01:35]} 21. Nd4 {[%clk 0:01:57]}  Rd5 {[%clk 0:01:33]} 22. Rd2 {[%clk 0:01:48]}  Rfd8 {[%clk 0:01:33]} 23. Rfd1 {[%clk 0:01:49]}  e5 {[%clk 0:01:31]} 24. fxe5 {[%clk 0:01:34]}  Rxe5 {[%clk 0:01:32]} 25. b4 {[%clk 0:01:27]}  axb4 {[%clk 0:01:26]} 26. cxb4 {[%clk 0:01:18]}  Bxd4 {[%clk 0:01:13]} 27. Rxd4 {[%clk 0:01:16]}  Rxd4 {[%clk 0:01:09]} 28. Qxd4 {[%clk 0:01:14]}  Re1+ {[%clk 0:00:55]} 29. Kh2 {[%clk 0:01:09]}  Qxd4 {[%clk 0:00:55]} 30. Rxd4 {[%clk 0:01:09]}  g6 {[%clk 0:00:54]} 31. Rd8+ {[%clk 0:00:59]}  Kg7 {[%clk 0:00:53]} 32. Ra8 {[%clk 0:00:57]}  h5 {[%clk 0:00:51]} 33. a4 {[%clk 0:00:55]}  Rb1 {[%clk 0:00:49]} 34. b5 {[%clk 0:00:55]}  Ra1 {[%clk 0:00:49]} 35. Ra6 {[%clk 0:00:54]}  Ra3 {[%clk 0:00:49]} 36. Ra7 {[%clk 0:00:49]}  Kf6 {[%clk 0:00:48]} 37. Rb7 {[%clk 0:00:43]}  Rxa4 {[%clk 0:00:45]} 38. Rxb6+ {[%clk 0:00:44]}  Kg5 {[%clk 0:00:45]} 39. Rc6 {[%clk 0:00:36]}  Rb4 {[%clk 0:00:44]} 40. Rc5+ {[%clk 0:00:36]}  f5 {[%clk 0:00:42]} 41. Rd5 {[%clk 0:00:33]}  Rb3 {[%clk 0:00:42]} 42. Rc5 {[%clk 0:00:32]}  Rb4 {[%clk 0:00:41]} 43. Rd5 {[%clk 0:00:26]}  Kg4 {[%clk 0:00:40]} 44. Rd6 {[%clk 0:00:24]}  Kg5 {[%clk 0:00:40]} 45. Rd5 {[%clk 0:00:24]} 1/2-1/2


[Site "https://www.chess.com"]

[Event "Titled Tuesday Blitz March 07 Late 2023"]
[White "Figorito, Nick"]
[Black "Sokolin, Leonid"]
[WhiteFideId "30923689"]
[BlackFideId "2009161"]
[WhiteElo "2392"]
[BlackElo "2394"]
[Result "0-1"]
[Round "10"]
[TimeControl "180+2"]
[Date "2023.03.07"]
[WhiteClock "0:00:51"]
[BlackClock "0:01:08"]

1. Nf3 {[%clk 0:03:00]}  Nf6 {[%clk 0:02:59]} 2. g3 {[%clk 0:03:01]}  e6 {[%clk 0:02:59]} 3. Bg2 {[%clk 0:03:01]}  d5 {[%clk 0:02:59]} 4. O-O {[%clk 0:03:02]}  Be7 {[%clk 0:03:00]} 5. d4 {[%clk 0:03:03]}  O-O {[%clk 0:03:00]} 6. Nbd2 {[%clk 0:03:03]}  c5 {[%clk 0:02:58]} 7. c4 {[%clk 0:03:01]}  cxd4 {[%clk 0:02:52]} 8. Nxd4 {[%clk 0:03:01]}  e5 {[%clk 0:02:50]} 9. N4f3 {[%clk 0:03:01]}  Nc6 {[%clk 0:02:50]} 10. cxd5 {[%clk 0:02:55]}  Nxd5 {[%clk 0:02:49]} 11. Nc4 {[%clk 0:02:55]}  e4 {[%clk 0:02:39]} 12. Ne1 {[%clk 0:02:42]}  f5 {[%clk 0:02:36]} 13. Nc2 {[%clk 0:02:42]}  Ndb4 {[%clk 0:02:33]} 14. Nxb4 {[%clk 0:02:41]}  Qxd1 {[%clk 0:02:30]} 15. Rxd1 {[%clk 0:02:42]}  Nxb4 {[%clk 0:02:29]} 16. Be3 {[%clk 0:02:30]}  Be6 {[%clk 0:02:29]} 17. Rac1 {[%clk 0:02:18]}  Nxa2 {[%clk 0:02:27]} 18. Rc2 {[%clk 0:02:14]}  Rfd8 {[%clk 0:02:19]} 19. Ra1 {[%clk 0:02:08]}  Nb4 {[%clk 0:02:09]} 20. Rcc1 {[%clk 0:02:08]}  b6 {[%clk 0:02:04]} 21. Bd2 {[%clk 0:01:57]}  Rab8 {[%clk 0:01:55]} 22. Bxb4 {[%clk 0:01:53]}  Bxb4 {[%clk 0:01:54]} 23. Rxa7 {[%clk 0:01:47]}  Rdc8 {[%clk 0:01:51]} 24. Ra4 {[%clk 0:01:31]}  Bf8 {[%clk 0:01:49]} 25. b3 {[%clk 0:01:14]}  b5 {[%clk 0:01:46]} 26. Ra6 {[%clk 0:01:14]}  Bf7 {[%clk 0:01:44]} 27. e3 {[%clk 0:01:11]}  bxc4 {[%clk 0:01:44]} 28. bxc4 {[%clk 0:01:11]}  Rxc4 {[%clk 0:01:42]} 29. Raa1 {[%clk 0:01:07]}  Rxc1+ {[%clk 0:01:40]} 30. Rxc1 {[%clk 0:01:08]}  Ba2 {[%clk 0:01:38]} 31. h4 {[%clk 0:01:07]}  Rb1 {[%clk 0:01:37]} 32. Rxb1 {[%clk 0:01:08]}  Bxb1 {[%clk 0:01:37]} 33. Bf1 {[%clk 0:01:08]}  Bd3 {[%clk 0:01:37]} 34. Bh3 {[%clk 0:01:08]}  g6 {[%clk 0:01:36]} 35. h5 {[%clk 0:01:08]}  Be2 {[%clk 0:01:31]} 36. hxg6 {[%clk 0:01:08]}  hxg6 {[%clk 0:01:31]} 37. Bg2 {[%clk 0:01:00]}  Bd6 {[%clk 0:01:29]} 38. Kh2 {[%clk 0:00:58]}  Kf7 {[%clk 0:01:28]} 39. Kh3 {[%clk 0:00:58]}  Ke6 {[%clk 0:01:26]} 40. Kh4 {[%clk 0:00:58]}  Be7+ {[%clk 0:01:26]} 41. Kh3 {[%clk 0:00:59]}  Ke5 {[%clk 0:01:25]} 42. Kh2 {[%clk 0:00:59]}  Kd5 {[%clk 0:01:26]} 43. Kg1 {[%clk 0:00:59]}  Kc4 {[%clk 0:01:26]} 44. Bh3 {[%clk 0:00:57]}  Kd3 {[%clk 0:01:25]} 45. Bg2 {[%clk 0:00:57]}  Kd2 {[%clk 0:01:25]} 46. Bh3 {[%clk 0:00:57]}  Ke1 {[%clk 0:01:22]} 47. Bg2 {[%clk 0:00:57]}  Bc5 {[%clk 0:01:13]} 48. Bh3 {[%clk 0:00:57]}  Kd2 {[%clk 0:01:10]} 49. Bg2 {[%clk 0:00:55]}  Bxe3 {[%clk 0:01:10]} 50. fxe3 {[%clk 0:00:55]}  Kxe3 {[%clk 0:01:11]} 51. Bh3 {[%clk 0:00:54]}  Kd2 {[%clk 0:01:10]} 52. Kf2 {[%clk 0:00:53]}  e3+ {[%clk 0:01:11]} 53. Kg2 {[%clk 0:00:52]}  Bd3 {[%clk 0:01:08]} 54. Kf3 {[%clk 0:00:51]}  e2 {[%clk 0:01:08]} 0-1


[Site "https://www.chess.com"]

[Event "Titled Tuesday Blitz March 07 Late 2023"]
[White "Dudzinski, Pawel"]
[Black "Rios Escobar, Adan"]
[WhiteFideId "1117890"]
[BlackFideId "3403645"]
[WhiteElo "2099"]
[BlackElo "2376"]
[Result "1/2-1/2"]
[Round "10"]
[TimeControl "180+2"]
[Date "2023.03.07"]
[WhiteClock "0:00:04"]
[BlackClock "0:00:06"]

1. e4 {[%clk 0:03:00]}  c5 {[%clk 0:02:58]} 2. Nc3 {[%clk 0:03:00]}  d6 {[%clk 0:02:58]} 3. g3 {[%clk 0:03:00]}  g6 {[%clk 0:02:57]} 4. Bg2 {[%clk 0:03:01]}  Bg7 {[%clk 0:02:57]} 5. d3 {[%clk 0:03:02]}  Nc6 {[%clk 0:02:58]} 6. Be3 {[%clk 0:03:01]}  e6 {[%clk 0:02:55]} 7. Qd2 {[%clk 0:03:00]}  Rb8 {[%clk 0:02:53]} 8. f4 {[%clk 0:03:00]}  b5 {[%clk 0:02:51]} 9. Nf3 {[%clk 0:03:00]}  b4 {[%clk 0:02:48]} 10. Nd1 {[%clk 0:03:00]}  Nf6 {[%clk 0:02:40]} 11. h3 {[%clk 0:03:00]}  a5 {[%clk 0:02:31]} 12. O-O {[%clk 0:02:59]}  O-O {[%clk 0:02:30]} 13. g4 {[%clk 0:02:57]}  Ba6 {[%clk 0:02:28]} 14. g5 {[%clk 0:02:56]}  Nh5 {[%clk 0:02:28]} 15. Kh2 {[%clk 0:02:56]}  d5 {[%clk 0:02:21]} 16. exd5 {[%clk 0:02:47]}  Nd4 {[%clk 0:01:57]} 17. Nxd4 {[%clk 0:02:03]}  cxd4 {[%clk 0:01:56]} 18. Bf2 {[%clk 0:02:03]}  e5 {[%clk 0:01:48]} 19. f5 {[%clk 0:01:23]}  gxf5 {[%clk 0:01:43]} 20. h4 {[%clk 0:01:22]}  Nf4 {[%clk 0:01:38]} 21. Bg3 {[%clk 0:01:17]}  Nxd5 {[%clk 0:01:33]} 22. Rxf5 {[%clk 0:01:08]}  Bc8 {[%clk 0:01:33]} 23. Rxe5 {[%clk 0:01:02]}  Bxe5 {[%clk 0:01:19]} 24. Bxe5 {[%clk 0:01:03]}  Rb5 {[%clk 0:01:20]} 25. Bg3 {[%clk 0:00:43]}  Re8 {[%clk 0:01:15]} 26. Nf2 {[%clk 0:00:38]}  Ne3 {[%clk 0:01:13]} 27. Be4 {[%clk 0:00:36]}  Qd7 {[%clk 0:01:07]} 28. Rg1 {[%clk 0:00:32]}  Rxe4 {[%clk 0:00:29]} 29. dxe4 {[%clk 0:00:31]}  Rc5 {[%clk 0:00:30]} 30. Rc1 {[%clk 0:00:24]}  Rxc2 {[%clk 0:00:18]} 31. Rxc2 {[%clk 0:00:22]}  Nf1+ {[%clk 0:00:19]} 32. Kg2 {[%clk 0:00:20]}  Nxd2 {[%clk 0:00:19]} 33. Rxd2 {[%clk 0:00:20]}  Bb7 {[%clk 0:00:15]} 34. Be5 {[%clk 0:00:20]}  d3 {[%clk 0:00:13]} 35. Kf3 {[%clk 0:00:17]}  Qe6 {[%clk 0:00:11]} 36. Nxd3 {[%clk 0:00:16]}  Ba6 {[%clk 0:00:09]} 37. Bf6 {[%clk 0:00:13]}  Qh3+ {[%clk 0:00:07]} 38. Ke2 {[%clk 0:00:10]}  Qg4+ {[%clk 0:00:07]} 39. Ke3 {[%clk 0:00:10]}  Qg3+ {[%clk 0:00:06]} 40. Kd4 {[%clk 0:00:09]}  Qxh4 {[%clk 0:00:06]} 41. Nc5 {[%clk 0:00:07]}  Qe1 {[%clk 0:00:06]} 42. Rc2 {[%clk 0:00:02]}  Qg1+ {[%clk 0:00:05]} 43. Ke5 {[%clk 0:00:02]}  Qg3+ {[%clk 0:00:05]} 44. Kd4 {[%clk 0:00:01]}  Qg1+ {[%clk 0:00:04]} 45. Ke5 {[%clk 0:00:02]}  Qg3+ {[%clk 0:00:05]} 46. Kd4 {[%clk 0:00:02]}  Qd6+ {[%clk 0:00:06]} 47. Ke3 {[%clk 0:00:02]}  Bc8 {[%clk 0:00:06]} 48. Nd3 {[%clk 0:00:02]}  Ba6 {[%clk 0:00:06]} 49. Rd2 {[%clk 0:00:03]}  Qc7 {[%clk 0:00:05]} 50. Kd4 {[%clk 0:00:04]}  Qd6+ {[%clk 0:00:06]} 51. Ke3 {[%clk 0:00:04]}  Qg3+ {[%clk 0:00:06]} 52. Kd4 {[%clk 0:00:04]}  Qd6+ {[%clk 0:00:06]} 53. Ke3 {[%clk 0:00:04]} 1/2-1/2


[Site "https://www.chess.com"]

[Event "Titled Tuesday Blitz March 07 Late 2023"]
[White "Vovk, Orest"]
[Black "Kovacs, Klara"]
[WhiteFideId "14113490"]
[BlackFideId "733210"]
[WhiteElo "2215"]
[BlackElo "2179"]
[Result "1-0"]
[Round "10"]
[TimeControl "180+2"]
[Date "2023.03.07"]
[WhiteClock "0:00:35"]
[BlackClock "0:00:10"]

1. h4 {[%clk 0:02:53]}  d5 {[%clk 0:02:42]} 2. h5 {[%clk 0:02:51]}  h6 {[%clk 0:02:41]} 3. e4 {[%clk 0:02:48]}  dxe4 {[%clk 0:02:41]} 4. Nc3 {[%clk 0:02:49]}  Nf6 {[%clk 0:02:40]} 5. Qe2 {[%clk 0:02:48]}  Qd4 {[%clk 0:02:37]} 6. Rh4 {[%clk 0:02:47]}  Bf5 {[%clk 0:02:31]} 7. Qb5+ {[%clk 0:02:47]}  Qd7 {[%clk 0:02:13]} 8. Qxb7 {[%clk 0:02:46]}  c6 {[%clk 0:02:03]} 9. Qxa8 {[%clk 0:02:44]}  Qc7 {[%clk 0:01:59]} 10. Ba6 {[%clk 0:02:29]}  e5 {[%clk 0:01:47]} 11. Qb7 {[%clk 0:02:27]}  Qd8 {[%clk 0:01:47]} 12. Bc4 {[%clk 0:02:15]}  Nfd7 {[%clk 0:01:44]} 13. Rxe4 {[%clk 0:02:06]}  Bxe4 {[%clk 0:01:40]} 14. Nxe4 {[%clk 0:02:07]}  f5 {[%clk 0:01:22]} 15. Ng3 {[%clk 0:01:57]}  Bc5 {[%clk 0:01:08]} 16. Nxf5 {[%clk 0:01:38]}  Rf8 {[%clk 0:01:07]} 17. Nxg7+ {[%clk 0:01:33]}  Ke7 {[%clk 0:01:06]} 18. Nh3 {[%clk 0:01:30]}  Rf6 {[%clk 0:01:00]} 19. d4 {[%clk 0:01:19]}  Bxd4 {[%clk 0:00:58]} 20. Bxh6 {[%clk 0:01:18]}  Qa5+ {[%clk 0:00:47]} 21. Bd2 {[%clk 0:01:07]}  Qc5 {[%clk 0:00:45]} 22. O-O-O {[%clk 0:00:57]}  Qxc4 {[%clk 0:00:43]} 23. Bg5 {[%clk 0:00:56]}  Qxa2 {[%clk 0:00:35]} 24. Nf5+ {[%clk 0:00:50]}  Kf7 {[%clk 0:00:28]} 25. Nxd4 {[%clk 0:00:51]}  exd4 {[%clk 0:00:22]} 26. Bxf6 {[%clk 0:00:49]}  Qa1+ {[%clk 0:00:19]} 27. Kd2 {[%clk 0:00:49]}  Qa5+ {[%clk 0:00:20]} 28. b4 {[%clk 0:00:48]}  Qd5 {[%clk 0:00:15]} 29. Bg5 {[%clk 0:00:41]}  Qxg2 {[%clk 0:00:14]} 30. Re1 {[%clk 0:00:38]}  Qxh3 {[%clk 0:00:11]} 31. Re7+ {[%clk 0:00:37]}  Kg8 {[%clk 0:00:12]} 32. Qc8+ {[%clk 0:00:35]}  Nf8 {[%clk 0:00:10]} 33. Qxh3 {[%clk 0:00:35]} 1-0


[Site "https://www.chess.com"]